fUSD/lending_fUSD_20260503
["ID","MTS","AMOUNT","RATE_DAILY","PERIOD"]
[421498806,1777758631000,-151.0,0.00010695,2]
[421498801,1777758631000,-151.0,0.00010695,2]
[421498797,1777758631000,-5000.0,0.00010694,2]
[421498805,1777758631000,-151.0,0.00010695,2]
[421498815,1777758631000,-500.0,0.00010699,2]
[421498803,1777758631000,-151.0,0.00010695,2]
[421498817,1777758631000,-500.0,0.00010699,2]
[421498816,1777758631000,-500.0,0.00010699,2]
[421498808,1777758631000,-472.51437042,0.00010695,2]
[421498810,1777758631000,-288.0,0.00010698,2]
[421498814,1777758631000,-500.0,0.00010699,2]
[421498813,1777758631000,-500.0,0.00010699,2]
[421498812,1777758631000,-1006.04721534,0.00010699,2]
[421498811,1777758631000,-150.0,0.00010698,2]
[421498809,1777758631000,-3091.68589504,0.00010696,2]
[421498807,1777758631000,-192.34130079,0.00010695,2]
[421498804,1777758631000,-151.0,0.00010695,2]
[421498842,1777758632000,-499.9865744,0.00010699,2]
[421498838,1777758632000,-500.0,0.00010699,2]
[421498839,1777758632000,-500.0,0.00010699,2]
[421498841,1777758632000,-0.0134256,0.00010699,2]
[421498843,1777758632000,-500.0,0.00010699,2]
[421498837,1777758632000,-500.0,0.00010699,2]
[421498844,1777758632000,-500.0,0.00010699,2]
[421498848,1777758632000,-256.62538277,0.00010699,2]
[421498846,1777758632000,-500.0,0.00010699,2]
[421498849,1777758632000,-195.18059808,0.00010699,2]
[421498847,1777758632000,-500.0,0.00010699,2]
[421498845,1777758632000,-500.0,0.00010699,2]
[421498851,1777758632000,-222.358,0.00010699,2]
[421498854,1777758632000,-500.0,0.00010699,2]
[421498840,1777758632000,-500.0,0.00010699,2]
[421498850,1777758632000,-3223.35,0.00010699,2]
[421498836,1777758632000,-500.0,0.00010699,2]
[421498819,1777758632000,-500.0,0.00010699,2]
[421498833,1777758632000,-465.72395313,0.00010699,2]
[421498818,1777758632000,-500.0,0.00010699,2]
[421498820,1777758632000,-500.0,0.00010699,2]
[421498826,1777758632000,-500.0,0.00010699,2]
[421498827,1777758632000,-167.48268079,0.00010699,2]
[421498828,1777758632000,-463.46733082,0.00010699,2]
[421498824,1777758632000,-173.11327048,0.00010699,2]
[421498825,1777758632000,-500.0,0.00010699,2]
[421498821,1777758632000,-500.0,0.00010699,2]
[421498853,1777758632000,-500.0,0.00010699,2]
[421498823,1777758632000,-326.88672952,0.00010699,2]
[421498829,1777758632000,-36.53266918,0.00010699,2]
[421498830,1777758632000,-500.0,0.00010699,2]
[421498832,1777758632000,-136.42772107,0.00010699,2]
[421498831,1777758632000,-363.57227893,0.00010699,2]
[421498834,1777758632000,-645.32659916,0.00010699,2]
[421498835,1777758632000,-500.0,0.00010699,2]
[421498855,1777758632000,-237.7522539,0.00010699,2]
[421498822,1777758632000,-500.0,0.00010699,2]
[421498859,1777758632000,-171.59960951,0.00010699,2]
[421498874,1777758632000,-500.0,0.00010699,2]
[421498878,1777758632000,-500.0,0.00010699,2]
[421498881,1777758632000,-500.0,0.00010699,2]
[421498879,1777758632000,-500.0,0.00010699,2]
[421498882,1777758632000,-500.0,0.00010699,2]
[421498883,1777758632000,-500.0,0.00010699,2]
[421498880,1777758632000,-500.0,0.00010699,2]
[421498885,1777758632000,-500.0,0.00010699,2]
[421498887,1777758632000,-906.78256907,0.000107,2]
[421498884,1777758632000,-500.0,0.00010699,2]
[421498888,1777758632000,-1060.14397087,0.000107,2]
[421498886,1777758632000,-183430.07471755,0.000107,2]
[421498889,1777758632000,-1668.97568377,0.000107,2]
[421498891,1777758632000,-1405.13503512,0.000107,2]
[421498857,1777758632000,-500.0,0.00010699,2]
[421498870,1777758632000,-500.0,0.00010699,2]
[421498873,1777758632000,-500.0,0.00010699,2]
[421498890,1777758632000,-28618.09368205,0.000107,2]
[421498869,1777758632000,-500.0,0.00010699,2]
[421498872,1777758632000,-500.0,0.00010699,2]
[421498856,1777758632000,-500.0,0.00010699,2]
[421498852,1777758632000,-500.0,0.00010699,2]
[421498862,1777758632000,-500.0,0.00010699,2]
[421498860,1777758632000,-500.0,0.00010699,2]
[421498863,1777758632000,-535.12185576,0.00010699,2]
[421498861,1777758632000,-584.4929851,0.00010699,2]
[421498864,1777758632000,-500.0,0.00010699,2]
[421498858,1777758632000,-500.0,0.00010699,2]
[421498866,1777758632000,-500.0,0.00010699,2]
[421498875,1777758632000,-500.0,0.00010699,2]
[421498865,1777758632000,-500.0,0.00010699,2]
[421498876,1777758632000,-500.0,0.00010699,2]
[421498868,1777758632000,-500.0,0.00010699,2]
[421498871,1777758632000,-500.0,0.00010699,2]
[421498877,1777758632000,-500.0,0.00010699,2]
[421498867,1777758632000,-500.0,0.00010699,2]
[421498986,1777758640000,-250.0,0.00011658,2]
[421499000,1777758640000,-300.0,0.00011759,2]
[421498998,1777758640000,-250.0,0.00011759,2]
[421498985,1777758640000,-500.0,0.00011651,2]
[421498989,1777758640000,-255.0,0.00011736,2]
[421499002,1777758640000,-1680.0,0.00011762,2]
[421499015,1777758640000,-500.0,0.00011999,2]
[421499014,1777758640000,-500.0,0.00011999,2]
[421499017,1777758640000,-500.0,0.00011999,2]
[421499018,1777758640000,-500.0,0.00011999,2]
[421498982,1777758640000,-5000.0,0.00011651,2]
[421499011,1777758640000,-1108.99789053,0.00011999,3]
[421499004,1777758640000,-400.0,0.000118,4]
[421498990,1777758640000,-1885.57,0.00011742,2]
[421498975,1777758640000,-1885.57,0.00011208,2]
[421498979,1777758640000,-1869.14170773,0.00011371,2]
[421498996,1777758640000,-500.0,0.00011759,2]
[421498977,1777758640000,-1760.39097854,0.00011371,2]
[421498994,1777758640000,-5000.0,0.00011759,2]
[421498981,1777758640000,-1885.57,0.00011475,2]
[421498973,1777758640000,-3826.96951731,0.00011099,2]
[421498969,1777758640000,-224.52,0.000107,2]
[421498971,1777758640000,-1885.57,0.00010941,2]
[421498967,1777758640000,-2208.40984734,0.000107,2]
[421498964,1777758640000,-24222.64890791,0.000107,2]
[421498948,1777758640000,-8514.05168779,0.000107,2]
[421498925,1777758640000,-284.14433268,0.000107,2]
[421499016,1777758640000,-500.0,0.00011999,2]
[421498992,1777758640000,-342.0,0.00011755,2]
[421499012,1777758640000,-250.0,0.00011999,2]
[421499013,1777758640000,-399.32997073,0.00011999,2]
[421499009,1777758640000,-155.57864443,0.0001199,2]
[421499046,1777758640000,-351.37161676,0.00011999,2]
[421499045,1777758640000,-29.15770489,0.00011999,2]
[421499039,1777758640000,-500.0,0.00011999,2]
[421499042,1777758640000,-141.17219177,0.00011999,2]
[421499040,1777758640000,-500.0,0.00011999,2]
[421499036,1777758640000,-572.54530291,0.00011999,2]
[421499041,1777758640000,-500.0,0.00011999,2]
[421499037,1777758640000,-500.0,0.00011999,2]
[421499035,1777758640000,-500.0,0.00011999,2]
[421499038,1777758640000,-500.0,0.00011999,2]
[421499034,1777758640000,-500.0,0.00011999,2]
[421499032,1777758640000,-500.0,0.00011999,2]
[421499033,1777758640000,-500.0,0.00011999,2]
[421499026,1777758640000,-500.0,0.00011999,2]
[421499043,1777758640000,-358.82780823,0.00011999,2]
[421499022,1777758640000,-500.0,0.00011999,2]
[421499008,1777758640000,-800.0,0.000119,4]
[421499031,1777758640000,-500.0,0.00011999,2]
[421499027,1777758640000,-500.0,0.00011999,2]
[421499023,1777758640000,-500.0,0.00011999,2]
[421499029,1777758640000,-500.0,0.00011999,2]
[421499044,1777758640000,-470.84229511,0.00011999,2]
[421499020,1777758640000,-500.0,0.00011999,2]
[421499028,1777758640000,-500.0,0.00011999,2]
[421499025,1777758640000,-500.0,0.00011999,2]
[421499030,1777758640000,-500.0,0.00011999,2]
[421499019,1777758640000,-500.0,0.00011999,2]
[421499021,1777758640000,-500.0,0.00011999,2]
[421499024,1777758640000,-500.0,0.00011999,2]
[421499006,1777758640000,-157.14827838,0.000119,2]
[421499075,1777758646000,-5130.96942146,0.00012,2]
[421499074,1777758646000,-500.0,0.00011999,2]
[421499072,1777758646000,-32.12306276,0.00011999,2]
[421499071,1777758646000,-233.87693724,0.00011999,2]
[421499073,1777758646000,-467.87693724,0.00011999,2]
[421499076,1777758646000,-1609.92298288,0.00012,2]
[421499070,1777758646000,-266.12306276,0.00011999,2]
[421499069,1777758646000,-148.62838324,0.00011999,2]
[421499079,1777758647000,-792.0,0.00012,2]
[421499085,1777758647000,-304086.99970379,0.00012,2]
[421499087,1777758647000,-7063.07942397,0.00012,2]
[421499086,1777758647000,-450.0,0.00012,2]
[421499111,1777758762000,172.09,6.863e-05,2]
[421499110,1777758762000,172.09,6.52e-05,2]
[421499115,1777758763000,172.09,8.236e-05,2]
[421499114,1777758763000,172.09,7.893e-05,2]
[421499113,1777758763000,172.09,7.549e-05,2]
[421499112,1777758763000,172.09,7.206e-05,2]
[421499116,1777759430000,4539.56,0.00030137,120]
[421499117,1777759435000,622.41722264,0.0003013,120]
[421499118,1777759588000,164.72,5.405e-05,2]
[421499120,1777759770000,-250.0,8.6e-05,2]
[421499119,1777759770000,-172.09,8.579e-05,2]
[421499121,1777759770000,-500.0,8.622e-05,2]
[421499122,1777759770000,-1782.663254,8.665e-05,2]
[421499152,1777759832000,-300.0,9.437e-05,2]
[421499173,1777759832000,-9430.99,0.00010085,2]
[421499182,1777759832000,-1680.0,0.00010379,2]
[421499171,1777759832000,-150.72256056,0.0001,2]
[421499162,1777759832000,-250.0,9.531e-05,2]
[421499166,1777759832000,-228.68,9.687e-05,2]
[421499164,1777759832000,-172.09,9.608e-05,2]
[421499160,1777759832000,-193.0,9.531e-05,2]
[421499169,1777759832000,-172.09,9.952e-05,2]
[421499158,1777759832000,-2003.14593727,9.531e-05,2]
[421499154,1777759832000,-500.0,9.437e-05,2]
[421499150,1777759832000,-5000.0,9.437e-05,2]
[421499141,1777759832000,-811.58958135,9.435e-05,2]
[421499145,1777759832000,-300.0,9.435e-05,2]
[421499148,1777759832000,-150.0,9.436e-05,2]
[421499139,1777759832000,-388.41041865,9.435e-05,2]
[421499137,1777759832000,-1200.0,9.435e-05,2]
[421499135,1777759832000,-172.09,9.265e-05,2]
[421499143,1777759832000,-300.0,9.435e-05,2]
[421499133,1777759832000,-172.09,8.922e-05,2]
[421499130,1777759832000,-228.81324167,8.793e-05,2]
[421499128,1777759832000,-470.496746,8.665e-05,2]
[421499175,1777759832000,-390.58,0.00010227,2]
[421499125,1777759832000,-1500.36,8.665e-05,2]
[421499156,1777759832000,-250.0,9.437e-05,2]
[421499178,1777759832000,-172.09,0.00010295,2]
[421499126,1777759832000,-1246.48,8.665e-05,2]
[421499184,1777759832000,-2000.0,0.00010396,2]
[421499180,1777759832000,-255.0,0.00010379,2]
[421499233,1777759832000,-151.0,0.00011838,2]
[421499228,1777759832000,-500.0,0.00011838,2]
[421499231,1777759832000,-151.0,0.00011838,2]
[421499224,1777759832000,-8287.55023158,0.00011834,2]
[421499226,1777759832000,-200.0,0.00011838,2]
[421499221,1777759832000,-2000.0,0.00011696,2]
[421499216,1777759832000,-172.09,0.00011667,2]
[421499217,1777759832000,-286.65485468,0.00011695,2]
[421499214,1777759832000,-2598.4,0.00011656,2]
[421499212,1777759832000,-433.0,0.00011417,2]
[421499210,1777759832000,-2351.0,0.00011416,2]
[421499230,1777759832000,-151.0,0.00011838,2]
[421499219,1777759832000,-1000.0,0.00011695,2]
[421499207,1777759832000,-2598.4,0.00011391,2]
[421499186,1777759832000,-166.77,0.00010543,2]
[421499188,1777759832000,-2598.4,0.00010596,2]
[421499191,1777759832000,-1760.39097854,0.00010699,2]
[421499193,1777759832000,-2598.4,0.00010861,2]
[421499189,1777759832000,-172.09,0.00010638,2]
[421499206,1777759832000,-172.09,0.00011324,2]
[421499197,1777759832000,-172.09,0.00010981,2]
[421499202,1777759832000,-2598.4,0.00011126,2]
[421499200,1777759832000,-500.0,0.00011112,2]
[421499204,1777759832000,-150.0,0.00011233,2]
[421499195,1777759832000,-250.0,0.00010949,2]
[421499262,1777759833000,-500.0,0.00011844,2]
[421499250,1777759833000,-179.0,0.00011843,2]
[421499265,1777759833000,-396.60596871,0.00011844,2]
[421499260,1777759833000,-466.16696435,0.00011844,2]
[421499258,1777759833000,-231.93087752,0.00011844,2]
[421499269,1777759833000,-500.0,0.00011844,2]
[421499256,1777759833000,-500.0,0.00011844,2]
[421499252,1777759833000,-500.0,0.00011844,2]
[421499238,1777759833000,-151.0,0.00011838,2]
[421499248,1777759833000,-151.0,0.00011838,2]
[421499246,1777759833000,-151.0,0.00011838,2]
[421499244,1777759833000,-230.60522689,0.00011838,2]
[421499242,1777759833000,-151.0,0.00011838,2]
[421499235,1777759833000,-151.0,0.00011838,2]
[421499239,1777759833000,-151.0,0.00011838,2]
[421499267,1777759833000,-500.0,0.00011844,2]
[421499254,1777759833000,-595.56424244,0.00011844,2]
[421499273,1777759833000,-500.0,0.00011844,2]
[421499271,1777759833000,-152.92849792,0.00011844,2]
[421499277,1777759833000,-5194.2910878,0.00011845,2]
[421499275,1777759833000,-147640.3416752,0.00011845,2]
[421499321,1777759833000,-399.63086424,0.00012,2]
[421499319,1777759833000,-18760.55878155,0.00012,2]
[421499317,1777759833000,-755.54257396,0.00012,2]
[421499304,1777759833000,-562483.13561094,0.00012,2]
[421499302,1777759833000,-250.0,0.00011999,2]
[421499300,1777759833000,-1108.99789053,0.00011999,3]
[421499298,1777759833000,-306.0,0.00011999,2]
[421499294,1777759833000,-160.0,0.00011988,2]
[421499296,1777759833000,-151.0,0.00011997,2]
[421499291,1777759833000,-500.0,0.000119,4]
[421499289,1777759833000,-10674.8923934,0.00011888,2]
[421499288,1777759833000,-500.53133547,0.00011873,2]
[421499286,1777759833000,-179.16326692,0.00011845,2]
[421499284,1777759833000,-52023.2420971,0.00011845,2]
[421499282,1777759833000,-11010.6649706,0.00011845,2]
[421499279,1777759833000,-8485.709781,0.00011845,2]
[421499293,1777759833000,-162.95027894,0.000119,2]
[421499398,1777759838000,-152.0,0.00012556,7]
[421499391,1777759838000,-210.8,0.00012,2]
[421499392,1777759838000,-172.09,0.0001201,2]
[421499395,1777759838000,-172.09,0.00012354,2]
[421499394,1777759838000,-189.59,0.00012329,2]
[421499396,1777759838000,-200.0,0.00012386,2]
[421499400,1777759838000,-172.09,0.00012697,2]
[421499406,1777759838000,-1.10814552,0.00013132,2]
[421499399,1777759838000,-422.0,0.00012559,2]
[421499402,1777759838000,-2000.0,0.00012995,2]
[421499403,1777759838000,-250.0,0.00013,2]
[421499401,1777759838000,-200.0,0.00012934,2]
[421499404,1777759838000,-172.09,0.0001304,2]
[421499416,1777759838000,-202.40725895,0.00013132,2]
[421499390,1777759838000,-210.8,0.00012,2]
[421499405,1777759838000,-498.89185448,0.00013132,2]
[421499397,1777759838000,-152.0,0.00012556,7]
[421499393,1777759838000,-500.0,0.00012118,2]
[421499382,1777759838000,-151.0,0.00012,2]
[421499389,1777759838000,-210.8,0.00012,2]
[421499410,1777759838000,-328.56195782,0.00013132,2]
[421499370,1777759838000,-289.11111019,0.00011745,2]
[421499371,1777759838000,-112.8536908,0.00011745,2]
[421499372,1777759838000,-2144.23390086,0.00012,2]
[421499374,1777759838000,-27361.73745587,0.00012,2]
[421499373,1777759838000,-1466.38808259,0.00012,2]
[421499375,1777759838000,-478.96837956,0.00012,2]
[421499376,1777759838000,-464.149656,0.00012,2]
[421499388,1777759838000,-151.0,0.00012,2]
[421499379,1777759838000,-464.149656,0.00012,2]
[421499377,1777759838000,-464.149656,0.00012,2]
[421499380,1777759838000,-302.75694338,0.00012,2]
[421499381,1777759838000,-151.0,0.00012,2]
[421499383,1777759838000,-151.0,0.00012,2]
[421499384,1777759838000,-151.0,0.00012,2]
[421499385,1777759838000,-151.0,0.00012,2]
[421499386,1777759838000,-151.0,0.00012,2]
[421499387,1777759838000,-151.0,0.00012,2]
[421499378,1777759838000,-464.149656,0.00012,2]
[421499412,1777759838000,-82.9365806,0.00013132,2]
[421499423,1777759838000,-10.7851501,0.000132,2]
[421499408,1777759838000,-500.0,0.00013132,2]
[421499444,1777759838000,-500.0,0.00013698,2]
[421499446,1777759838000,-500.0,0.00013698,2]
[421499448,1777759838000,-1000.0,0.00013748,2]
[421499447,1777759838000,-166.66,0.00013699,2]
[421499449,1777759838000,-166.66,0.00013836,2]
[421499450,1777759838000,-166.66,0.00013973,2]
[421499452,1777759838000,-200.0,0.0001403,2]
[421499451,1777759838000,-150.0,0.00013987,2]
[421499453,1777759838000,-166.66,0.0001411,2]
[421499455,1777759838000,-500.0,0.00014127,2]
[421499454,1777759838000,-500.0,0.00014127,2]
[421499456,1777759838000,-166.66,0.00014247,2]
[421499457,1777759838000,-2000.0,0.00014295,2]
[421499458,1777759838000,-1022.06145725,0.00014296,2]
[421499459,1777759838000,-390.58,0.00014318,2]
[421499460,1777759838000,-500.0,0.0001435,2]
[421499414,1777759838000,-297.59274105,0.00013132,2]
[421499443,1777759838000,-500.0,0.00013698,2]
[421499441,1777759838000,-500.0,0.00013698,2]
[421499445,1777759838000,-500.0,0.00013698,2]
[421499442,1777759838000,-211.91033858,0.00013698,2]
[421499417,1777759838000,-500.0,0.00013132,2]
[421499418,1777759838000,-500.0,0.00013132,2]
[421499420,1777759838000,-183.70581575,0.00013132,2]
[421499426,1777759838000,-500.0,0.000132,2]
[421499427,1777759838000,-200.0,0.00013482,2]
[421499438,1777759838000,-500.0,0.0001368,2]
[421499428,1777759838000,-150.0,0.00013488,2]
[421499431,1777759838000,-150.0,0.00013488,2]
[421499429,1777759838000,-150.0,0.00013488,2]
[421499425,1777759838000,-150.06764111,0.000132,2]
[421499430,1777759838000,-287.93939465,0.00013488,2]
[421499433,1777759838000,-476.99371061,0.0001368,2]
[421499435,1777759838000,-448.98232598,0.0001368,2]
[421499436,1777759838000,-500.0,0.0001368,2]
[421499434,1777759838000,-93.44746871,0.0001368,2]
[421499437,1777759838000,-500.0,0.0001368,2]
[421499439,1777759838000,-500.0,0.00013698,2]
[421499440,1777759838000,-330.28911157,0.00013698,2]
[421499432,1777759838000,-429.55882068,0.0001368,2]
[421499466,1777759839000,-1500.0,0.000148,5]
[421499467,1777759839000,-233.98723583,0.000149,2]
[421499465,1777759839000,-1000.0,0.000147,5]
[421499461,1777759839000,-166.66,0.00014384,2]
[421499464,1777759839000,-200.0,0.00014578,2]
[421499462,1777759839000,-150.0,0.00014487,2]
[421499468,1777759839000,-5000.0,0.000149,2]
[421499463,1777759839000,-500.0,0.00014577,2]
[421499469,1777759839000,-360.74584526,0.000149,2]
[421499470,1777759839000,-203.36533976,0.000149,2]
[421499471,1777759839000,-2000.0,0.000149,5]
[421499479,1777759839000,-18586.76941834,0.00015,2]
[421499478,1777759839000,-151.0,0.00014997,2]
[421499477,1777759839000,-155.57864443,0.0001499,2]
[421499480,1777759839000,-1170.75638054,0.00015,2]
[421499472,1777759839000,-642.24,0.00014959,2]
[421499475,1777759839000,-150.0,0.00014986,2]
[421499474,1777759839000,-265.8524428,0.00014986,2]
[421499473,1777759839000,-506.58951316,0.00014973,2]
[421499476,1777759839000,-150.0,0.00014986,2]
[421499486,1777759840000,-2387.0,0.00015,2]
[421499484,1777759840000,-7721.94853633,0.00015,2]
[421499481,1777759840000,-210.8,0.00012,2]
[421499483,1777759840000,-989.65348115,0.00015,2]
[421499482,1777759840000,-570.26101906,0.00015,2]
[421499485,1777759840000,-292.88746771,0.00015,2]
[421499503,1777759843000,-157966.99999984,0.00015,2]
[421499497,1777759843000,-764.86434579,0.00015,2]
[421499499,1777759843000,-306401.09456291,0.00015,2]
[421499500,1777759843000,-563.47241954,0.00015,2]
[421499501,1777759843000,-2343.68669856,0.00015,2]
[421499502,1777759843000,-11796.97812798,0.00015,2]
[421499506,1777759843000,-3953.75416486,0.00015,2]
[421499507,1777759843000,-20651.65181856,0.00015,2]
[421499505,1777759843000,-743.33980056,0.00015,2]
[421499508,1777759843000,-1030.1308482,0.00015,2]
[421499509,1777759843000,-1772.92596407,0.00015,2]
[421499511,1777759843000,-4307.74967549,0.00015,2]
[421499510,1777759843000,-997.41786555,0.00015,2]
[421499504,1777759843000,-3101.36321665,0.00015,2]
[421499513,1777759846000,-6106.53102283,0.00015,2]
[421499514,1777759846000,-626.20540277,0.00015,2]
[421499516,1777759846000,-2430.59892602,0.00015,2]
[421499515,1777759846000,-929.79883095,0.00015,2]
[421499517,1777759846000,-1517.20192,0.00015,2]
[421499520,1777759846000,-13471.64648594,0.00015,2]
[421499519,1777759846000,-1614.468702,0.00015,2]
[421499521,1777759846000,-3478.7,0.00015,2]
[421499518,1777759846000,-845.0235,0.00015,2]
[421499522,1777759977000,535.43,0.00025878,120]
[421499523,1777760498000,172.09,7.733e-05,2]
[421499525,1777760814000,-91.29675193,0.00012915,2]
[421499524,1777760814000,-266.5992,0.00011742,2]
[421499529,1777761032000,-8772.71715844,0.00012,2]
[421499528,1777761032000,-1112.4657339,0.00011,2]
[421499530,1777761032000,-1226.08351096,0.00012,2]
[421499531,1777761032000,-716.88532856,0.00012,2]
[421499548,1777761033000,-150.0,0.0001346,2]
[421499555,1777761033000,-150.0,0.00013814,2]
[421499556,1777761033000,-150.0,0.00013885,2]
[421499553,1777761033000,-150.0,0.00013743,2]
[421499552,1777761033000,-200.0,0.00013699,2]
[421499551,1777761033000,-150.0,0.00013672,2]
[421499550,1777761033000,-150.0,0.00013602,2]
[421499547,1777761033000,-163.08,0.00013405,2]
[421499549,1777761033000,-150.0,0.00013531,2]
[421499546,1777761033000,-150.0,0.00013389,2]
[421499545,1777761033000,-150.0,0.00013389,2]
[421499544,1777761033000,-150.0,0.00013389,2]
[421499542,1777761033000,-250.0,0.00013,2]
[421499539,1777761033000,-1050.73267188,0.00012,2]
[421499540,1777761033000,-1969.25909223,0.000121,2]
[421499541,1777761033000,-217.62068346,0.00012816,2]
[421499536,1777761033000,-12459.82282015,0.00012,2]
[421499538,1777761033000,-440.0,0.00012,2]
[421499537,1777761033000,-19689.57241436,0.00012,2]
[421499535,1777761033000,-478.50807902,0.00012,2]
[421499534,1777761033000,-603.84235597,0.00012,2]
[421499533,1777761033000,-12168.20310736,0.00012,2]
[421499532,1777761033000,-351.5299975,0.00012,2]
[421499557,1777761033000,-150.0,0.00013956,2]
[421499558,1777761033000,-150.0,0.00014027,2]
[421499543,1777761033000,-1000.0,0.00013368,2]
[421499559,1777761033000,-1114.0,0.00014097,2]
[421499584,1777761033000,-150.0,0.00014735,2]
[421499583,1777761033000,-800.0,0.000147,5]
[421499582,1777761033000,-150.0,0.00014664,2]
[421499581,1777761033000,-500.0,0.000146,5]
[421499580,1777761033000,-150.0,0.00014593,2]
[421499578,1777761033000,-150.0,0.00014505,2]
[421499570,1777761033000,-300.0,0.00014207,2]
[421499560,1777761033000,-150.0,0.00014097,2]
[421499579,1777761033000,-150.0,0.00014523,2]
[421499573,1777761033000,-150.0,0.0001431,2]
[421499576,1777761033000,-150.0,0.00014452,2]
[421499574,1777761033000,-150.0,0.00014381,2]
[421499571,1777761033000,-300.0,0.00014207,2]
[421499572,1777761033000,-150.0,0.00014239,2]
[421499577,1777761033000,-200.0,0.000145,5]
[421499563,1777761033000,-300.0,0.00014168,2]
[421499562,1777761033000,-150.0,0.00014133,2]
[421499564,1777761033000,-227.0,0.00014168,2]
[421499566,1777761033000,-150.0,0.00014168,2]
[421499561,1777761033000,-250.0,0.00014098,2]
[421499567,1777761033000,-300.0,0.00014207,2]
[421499565,1777761033000,-150.0,0.00014168,2]
[421499575,1777761033000,-700.0,0.00014438,2]
[421499554,1777761033000,-150.0,0.00013761,2]
[421499569,1777761033000,-300.0,0.00014207,2]
[421499568,1777761033000,-300.0,0.00014207,2]
[421499615,1777761034000,-908.3209474,0.00014899,2]
[421499616,1777761034000,-908.3209474,0.00014899,2]
[421499619,1777761034000,-908.3209474,0.00014899,2]
[421499627,1777761034000,-908.3209474,0.00014899,2]
[421499621,1777761034000,-908.3209474,0.00014899,2]
[421499620,1777761034000,-908.3209474,0.00014899,2]
[421499617,1777761034000,-908.3209474,0.00014899,2]
[421499622,1777761034000,-908.3209474,0.00014899,2]
[421499623,1777761034000,-908.3209474,0.00014899,2]
[421499625,1777761034000,-908.3209474,0.00014899,2]
[421499624,1777761034000,-908.3209474,0.00014899,2]
[421499618,1777761034000,-908.3209474,0.00014899,2]
[421499658,1777761034000,-442.32622926,0.00014899,2]
[421499629,1777761034000,-908.3209474,0.00014899,2]
[421499634,1777761034000,-908.3209474,0.00014899,2]
[421499630,1777761034000,-908.3209474,0.00014899,2]
[421499631,1777761034000,-908.3209474,0.00014899,2]
[421499628,1777761034000,-908.3209474,0.00014899,2]
[421499633,1777761034000,-908.3209474,0.00014899,2]
[421499632,1777761034000,-908.3209474,0.00014899,2]
[421499635,1777761034000,-908.3209474,0.00014899,2]
[421499636,1777761034000,-908.3209474,0.00014899,2]
[421499637,1777761034000,-908.3209474,0.00014899,2]
[421499639,1777761034000,-908.3209474,0.00014899,2]
[421499638,1777761034000,-908.3209474,0.00014899,2]
[421499612,1777761034000,-500.0,0.00014899,2]
[421499626,1777761034000,-908.3209474,0.00014899,2]
[421499609,1777761034000,-500.0,0.00014899,2]
[421499588,1777761034000,-2500.0,0.000148,2]
[421499605,1777761034000,-506.05322325,0.00014899,2]
[421499590,1777761034000,-500.0,0.000148,2]
[421499642,1777761034000,-908.3209474,0.00014899,2]
[421499591,1777761034000,-6896.20877717,0.000148,2]
[421499587,1777761034000,-3910.4138,0.000148,2]
[421499586,1777761034000,-309.2107245,0.000148,2]
[421499589,1777761034000,-10793.50230889,0.000148,2]
[421499585,1777761034000,-23635.268,0.00014798,2]
[421499593,1777761034000,-1000.0,0.000148,5]